fUST/lending_fUST_20250820
["ID","MTS","AMOUNT","RATE_DAILY","PERIOD"]
[380252736,1755628471038,-500.0,0.00019351,2]
[380252737,1755628471060,-500.0,0.00019351,2]
[380252738,1755628471083,-500.0,0.00019351,2]
[380252739,1755628471105,-500.0,0.00019351,2]
[380252740,1755628471127,-500.0,0.00019351,2]
[380252741,1755628471149,-500.0,0.00019351,2]
[380252742,1755628471170,-500.0,0.00019351,2]
[380252743,1755628471192,-500.0,0.00019351,2]
[380252744,1755628471214,-500.0,0.00019351,2]
[380252745,1755628471237,-500.0,0.00019351,2]
[380252746,1755628471259,-500.0,0.00019351,2]
[380252747,1755628471281,-500.0,0.00019351,2]
[380252748,1755628471303,-500.0,0.00019351,2]
[380252749,1755628471326,-500.0,0.00019351,2]
[380252750,1755628471350,-465.0,0.00019351,2]
[380252751,1755628471372,-500.0,0.00019351,2]
[380252752,1755628471395,-500.0,0.00019351,2]
[380252753,1755628471419,-500.0,0.00019351,2]
[380252754,1755628471444,-500.0,0.00019351,2]
[380252755,1755628471469,-370000.0,0.00019352,2]
[380252756,1755628471494,-500.0,0.00019373,2]
[380252757,1755628471517,-500.0,0.00019373,2]
[380252758,1755628471543,-300.0,0.00019442,20]
[380252759,1755628471569,-300.0,0.00019442,20]
[380252760,1755628471593,-300.0,0.00019442,20]
[380252761,1755628471618,-300.0,0.00019442,20]
[380252762,1755628471641,-300.0,0.00019442,20]
[380252763,1755628471665,-300.0,0.00019442,20]
[380252764,1755628471690,-300.0,0.00019442,20]
[380252765,1755628471714,-300.0,0.00019442,20]
[380252766,1755628471739,-300.0,0.00019442,20]
[380252767,1755628471762,-300.0,0.00019442,20]
[380252768,1755628471786,-300.0,0.00019442,20]
[380252769,1755628471809,-300.0,0.00019442,20]
[380252770,1755628471833,-300.0,0.00019442,20]
[380252771,1755628471858,-300.0,0.00019442,20]
[380252772,1755628471882,-300.0,0.00019442,20]
[380252773,1755628471905,-600.0,0.00019442,20]
[380252774,1755628471928,-480.0,0.00019452,2]
[380252775,1755628471955,-480.0,0.00019452,2]
[380252776,1755628471978,-480.0,0.00019452,2]
[380252777,1755628472003,-480.0,0.00019452,2]
[380252778,1755628472027,-480.0,0.00019452,2]
[380252779,1755628472049,-323.51445424,0.00019452,2]
[380252780,1755628472072,-259.606455,0.00019452,2]
[380252781,1755628472096,-161.29,0.00019452,2]
[380252782,1755628472120,-480.0,0.00019452,2]
[380252783,1755628472143,-846.28,0.00019452,2]
[380252784,1755628472166,-480.0,0.00019452,2]
[380252785,1755628472188,-498.07936394,0.00019452,2]
[380252786,1755628472210,-480.0,0.00019452,2]
[380252787,1755628472232,-480.0,0.00019452,2]
[380252788,1755628472254,-480.0,0.00019452,2]
[380252789,1755628472276,-480.0,0.00019726,2]
[380252790,1755628472298,-480.0,0.00019726,2]
[380252791,1755628472323,-480.0,0.00019726,2]
[380252792,1755628472346,-480.0,0.00019726,2]
[380252793,1755628472370,-480.0,0.00019726,2]
[380252794,1755628472393,-480.0,0.00019726,2]
[380252795,1755628472417,-846.28,0.00019726,2]
[380252796,1755628472441,-480.0,0.00019726,2]
[380252797,1755628472464,-480.0,0.00019726,2]
[380252798,1755628472490,-480.0,0.00019726,2]
[380252799,1755628472513,-1000.0,0.00019921,2]
[380252800,1755628472536,-1000.0,0.00019999,2]
[380252801,1755628472559,-1000.0,0.00019999,2]
[380252802,1755628472582,-1000.0,0.00019999,2]
[380252803,1755628472606,-1000.0,0.00019999,2]
[380252804,1755628472631,-1000.0,0.00019999,2]
[380252805,1755628472653,-151.0,0.0002,2]
[380252806,1755628472674,-151.0,0.0002,2]
[380252807,1755628472699,-480.0,0.0002,2]
[380252808,1755628472722,-480.0,0.0002,2]
[380252809,1755628472854,-151.0,0.0002,2]
[380252810,1755628472878,-480.0,0.0002,2]
[380252811,1755628472901,-236.598099,0.0002,2]
[380252812,1755628472924,-480.0,0.0002,2]
[380252813,1755628472952,-480.0,0.0002,2]
[380252814,1755628472976,-480.0,0.0002,2]
[380252815,1755628473000,-846.28,0.0002,2]
[380252816,1755628473026,-480.0,0.0002,2]
[380252817,1755628473050,-480.0,0.0002,2]
[380252818,1755628473075,-480.0,0.0002,2]
[380252819,1755628473100,-1000.0,0.00020198,2]
[380252820,1755628473123,-1000.0,0.00020198,2]
[380252821,1755628473149,-1000.0,0.00020198,2]
[380252822,1755628473172,-1000.0,0.00020198,2]
[380252823,1755628473197,-1000.0,0.00020198,2]
[380252824,1755628473220,-1000.0,0.00020198,2]
[380252825,1755628473244,-1000.0,0.00020198,2]
[380252826,1755628473267,-1000.0,0.00020198,2]
[380252827,1755628473289,-1000.0,0.00020198,2]
[380252828,1755628473313,-1000.0,0.00020198,2]
[380252829,1755628473336,-1000.0,0.00020198,2]
[380252830,1755628473359,-1000.0,0.00020198,2]
[380252831,1755628473383,-770.62100014,0.00020198,2]
[380252832,1755628473408,-480.0,0.00020273,2]
[380252833,1755628473432,-480.0,0.00020273,2]
[380252834,1755628473457,-480.0,0.00020273,2]
[380252835,1755628473481,-480.0,0.00020273,2]
[380252836,1755628473508,-480.0,0.00020273,2]
[380252837,1755628473534,-480.0,0.00020273,2]
[380252838,1755628473559,-846.28,0.00020273,2]
[380252839,1755628473583,-480.0,0.00020273,2]
[380252840,1755628473606,-480.0,0.00020273,2]
[380252841,1755628473631,-480.0,0.00020273,2]
[380252842,1755628473656,-560.30109212,0.00020468,2]
[380252843,1755628473681,-480.0,0.00020547,2]
[380252844,1755628473707,-480.0,0.00020547,2]
[380252845,1755628473733,-480.0,0.00020547,2]
[380252846,1755628473757,-480.0,0.00020547,2]
[380252847,1755628473783,-480.0,0.00020547,2]
[380252848,1755628473810,-846.28,0.00020547,2]
[380252849,1755628473833,-480.0,0.00020547,2]
[380252850,1755628473856,-480.0,0.00020547,2]
[380252851,1755628473880,-480.0,0.00020547,2]
[380252852,1755628473903,-160.0,0.00020723,2]
[380252853,1755628473926,-160.0,0.00020723,2]
[380252854,1755628473953,-216.8835046,0.00020723,2]
[380252855,1755628473977,-215.79176414,0.00020723,2]
[380252856,1755628474001,-160.0,0.00020723,2]
[380252857,1755628474028,-843.93972674,0.00020723,2]
[380252858,1755628474051,-160.0,0.00020723,2]
[380252859,1755628474074,-417.15472785,0.00020723,2]
[380252860,1755628474097,-528.6845513,0.00020723,2]
[380252861,1755628474145,-375.88899365,0.00020723,2]
[380252862,1755628474170,-232.21311493,0.00020723,2]
[380252863,1755628474193,-160.0,0.00020723,2]
[380252864,1755628474219,-480.0,0.00020821,2]
[380252865,1755628474244,-480.0,0.00020821,2]
[380252866,1755628474269,-480.0,0.00020821,2]
[380252867,1755628474293,-480.0,0.00020821,2]
[380252868,1755628474317,-480.0,0.00020821,2]
[380252869,1755628474342,-846.28,0.00020821,2]
[380252870,1755628474367,-480.0,0.00020821,2]
[380252871,1755628474390,-480.0,0.00020821,2]
[380252872,1755628474413,-480.0,0.00020821,2]
[380252873,1755628474438,-420.0,0.00020899,2]
[380252874,1755628474461,-283.09297172,0.00021095,2]
[380252875,1755628474483,-480.0,0.00021095,2]
[380252876,1755628474509,-480.0,0.00021095,2]
[380252877,1755628474533,-480.0,0.00021095,2]
[380252878,1755628474556,-480.0,0.00021095,2]
[380252879,1755628474579,-846.28,0.00021095,2]
[380252880,1755628474602,-480.0,0.00021095,2]
[380252881,1755628474625,-480.0,0.00021095,2]
[380252882,1755628474648,-480.0,0.00021095,2]
[380252883,1755628474673,-471.38,0.0002111,2]
[380252884,1755628474695,-506.87475374,0.00021369,2]
[380252885,1755628474719,-480.0,0.00021369,2]
[380252886,1755628474743,-316.43901871,0.00021369,2]
[380252887,1755628474766,-457.84082815,0.00021369,2]
[380252888,1755628474788,-846.28,0.00021369,2]
[380252889,1755628474810,-480.0,0.00021369,2]
[380252890,1755628474833,-480.0,0.00021369,2]
[380252891,1755628474860,-720.0,0.00021386,20]
[380252892,1755628474885,-480.0,0.00021643,2]
[380252893,1755628474909,-846.28,0.00021643,2]
[380252894,1755628474933,-480.0,0.00021643,2]
[380252895,1755628474959,-480.0,0.00021917,2]
[380252896,1755628474984,-846.28,0.00021917,2]
[380252897,1755628475017,-480.0,0.00021917,2]
[380252898,1755628475049,-417.15472785,0.00022,7]
[380252899,1755628475073,-179.0,0.00022,2]
[380252900,1755628475098,-504.55,0.00022,7]
[380252901,1755628475121,-2716.18,0.00022,7]
[380252902,1755628475142,-7517.98,0.00022,7]
[380252903,1755628475166,-942.75,0.00022115,2]
[380252904,1755628475189,-480.0,0.00022191,2]
[380252905,1755628475211,-846.28,0.00022191,2]
[380252906,1755628475233,-480.0,0.00022191,2]
[380252907,1755628475259,-154.249576,0.00022266,2]
[380252908,1755628475283,-160.0,0.00022383,2]
[380252909,1755628475306,-480.0,0.00022465,2]
[380252910,1755628475332,-846.28,0.00022465,2]
[380252911,1755628475355,-480.0,0.00022465,2]
[380252912,1755628475378,-480.0,0.00022739,2]
[380252913,1755628475401,-846.28,0.00022739,2]
[380252914,1755628475423,-480.0,0.00022739,2]
[380252915,1755628475445,-587.0,0.00022776,2]
[380252916,1755628475468,-260.0,0.00022931,2]
[380252917,1755628475493,-160.0,0.00023,2]
[380252918,1755628475517,-480.0,0.00023013,2]
[380252919,1755628475540,-846.28,0.00023013,2]
[380252920,1755628475563,-521.88735864,0.00023013,2]
[380252921,1755628475589,-1414.13,0.00023121,2]
[380252922,1755628475612,-480.0,0.00023287,2]
[380252923,1755628475634,-846.28,0.00023287,2]
[380252924,1755628475656,-360.0,0.00023479,2]
[380252925,1755628475680,-864.0,0.00023525,20]
[380252926,1755628475703,-480.0,0.00023561,2]
[380252927,1755628475726,-846.28,0.00023561,2]
[380252928,1755628475747,-151.0,0.000237,7]
[380252929,1755628475769,-151.0,0.000237,7]
[380252930,1755628475791,-645.0,0.000237,2]
[380252931,1755628475813,-1609.29209431,0.00023736,2]
[380252932,1755628475837,-1609.29209431,0.00023768,2]
[380252933,1755628475860,-1000.0,0.00023825,2]
[380252934,1755628475883,-480.0,0.00023835,2]
[380252935,1755628475906,-846.28,0.00023835,2]
[380252936,1755628475928,-154.249576,0.0002401,2]
[380252937,1755628475953,-460.0,0.00024027,2]
[380252938,1755628475974,-972.0,0.00024073,2]
[380252939,1755628475997,-408.0,0.00024073,2]
[380252940,1755628476024,-637.0,0.00024073,2]
[380252941,1755628476161,-2153.0,0.00024073,2]
[380252942,1755628476185,-504.55,0.000241,7]
[380252943,1755628476211,-480.0,0.00024109,2]
[380252944,1755628476235,-846.28,0.00024109,2]
[380252945,1755628476262,-1885.5,0.00024126,2]
[380252946,1755628476285,-2716.18,0.000242,7]
[380252947,1755628476308,-7517.98,0.000242,7]
[380252948,1755628476330,-293.8943201,0.00024208,2]
[380252949,1755628476353,-154.249576,0.00024225,3]
[380252950,1755628476376,-439.8620184,0.00024249,2]
[380252951,1755628476399,-480.0,0.00024383,2]
[380252952,1755628476422,-846.28,0.00024383,2]
[380252953,1755628476444,-168.0,0.00024473,2]
[380252954,1755628476465,-560.0,0.00024575,2]
[380252955,1755628476490,-168.0,0.00024613,2]
[380252956,1755628476512,-151.0,0.0002465,7]
[380252957,1755628476536,-194.546413,0.0002465,7]
[380252958,1755628476561,-480.0,0.00024657,2]
[380252959,1755628476585,-846.28,0.00024657,2]
[380252960,1755628476607,-162.461693,0.00024734,2]
[380252961,1755628476630,-91447.0187431,0.000248,2]
[380252962,1755628476654,-168.0,0.00024805,2]
[380252963,1755628476679,-823.0,0.00024821,2]
[380252964,1755628476701,-151.0,0.000249,7]
[380252965,1755628476725,-417.15472785,0.000249,7]
[380252966,1755628476747,-874730.005715,0.000249,2]
[380252967,1755628476769,-1000.0,0.00024921,2]
[380252968,1755628476792,-480.0,0.00024931,2]
[380252969,1755628476816,-846.28,0.00024931,2]
[380252970,1755628476838,-246.70870026,0.00024975,2]
[380252971,1755628476861,-9144.70187431,0.0002499,2]
[380252972,1755628476884,-27901.21162513,0.00025,2]
[380252973,1755628476907,-151.0,0.00025,7]
[380252974,1755628476931,-151.0,0.00025,7]
[380252975,1755628476956,-151.0,0.00025,7]
[380252976,1755628476980,-2200.0,0.00025,2]
[380252977,1755628477004,-232.21311493,0.00025,7]
[380252978,1755628477032,-12685.85563623,0.00025,7]
[380252979,1755628477054,-375.88899365,0.00025,7]
[380252980,1755628477078,-216.8835046,0.00025,7]
[380252981,1755628477106,-163.33011413,0.00025,2]
[380252982,1755628477136,-768.0,0.00025014,2]
[380252983,1755628477159,-768.0,0.00025015,2]
[380252984,1755628477182,-622.0,0.00025019,2]
[380252985,1755628477204,-768.0,0.00025062,2]
[380252986,1755628477229,-768.0,0.00025066,2]
[380252987,1755628477254,-500.0,0.0002508,9]
[380252988,1755628477277,-798.1,0.00025082,7]
[380252989,1755628477303,-543.64474858,0.00025099,2]
[380252990,1755628477328,-27451.44,0.000251,2]
[380252991,1755628477351,-157.701741,0.0002511,3]
[380252992,1755628477373,-660.0,0.00025123,2]
[380252993,1755628477400,-2356.88,0.00025131,2]
[380252994,1755628477423,-798.1,0.00025182,7]
[380252995,1755628477446,-9144.70187431,0.00025195,2]
[380252996,1755628477468,-19007.86579796,0.00025205,5]
[380252997,1755628477493,-935.26,0.00025205,2]
[380252998,1755628477517,-480.0,0.00025205,2]
[380252999,1755628477539,-846.28,0.00025205,2]
[380253000,1755628477562,-1096.0,0.00025206,2]
[380253001,1755628477585,-4083.44945437,0.00025265,3]
[380253002,1755628477609,-798.1,0.00025282,7]
[380253003,1755628477632,-1000.0,0.000253,2]
[380253004,1755628477655,-1000.0,0.000253,2]
[380253005,1755628477677,-1000.0,0.000253,2]
[380253006,1755628477700,-1000.0,0.000253,2]
[380253007,1755628477722,-1000.0,0.000253,2]
[380253008,1755628477745,-1000.0,0.000253,2]
[380253009,1755628477768,-154.249576,0.00025322,15]
[380253010,1755628477791,-168.0,0.00025325,2]
[380253011,1755628477816,-168.0,0.00025335,2]
[380253012,1755628477838,-257.13063666,0.00025335,2]
[380253013,1755628477861,-153.91704026,0.00025335,2]
[380253014,1755628477889,-151.0,0.00025335,2]
[380253015,1755628477911,-151.0,0.00025335,2]
[380253016,1755628477935,-151.0,0.00025335,2]
[380253017,1755628477959,-270.49883543,0.00025335,2]
[380253018,1755628477983,-500.0,0.00025335,2]
[380253019,1755628478007,-500.0,0.00025335,2]
[380253020,1755628478031,-151.0,0.00025335,2]
[380253021,1755628478052,-151.0,0.00025335,2]
[380253022,1755628478075,-151.0,0.00025335,2]
[380253023,1755628478098,-151.0,0.00025335,2]
[380253024,1755628478122,-798.1,0.00025382,7]
[380253025,1755628478144,-9144.70187431,0.0002539,2]
[380253026,1755628478166,-12685.85563623,0.000254,3]
[380253027,1755628478188,-160.0,0.000254,3]
[380253028,1755628478210,-160.0,0.000254,3]
[380253029,1755628478233,-1957.4,0.000254,2]
[380253030,1755628478255,-843.93972674,0.000254,3]
[380253031,1755628478278,-417.15472785,0.000254,3]
[380253032,1755628478300,-160.0,0.000254,3]
[380253033,1755628478321,-160.0,0.000254,3]
[380253034,1755628478343,-215.79176414,0.000254,3]
[380253035,1755628478365,-528.6845513,0.000254,3]
[380253036,1755628478387,-160.0,0.000254,3]
[380253037,1755628478410,-232.21311493,0.000254,3]
[380253038,1755628478435,-375.88899365,0.000254,3]
[380253039,1755628478460,-216.8835046,0.000254,3]
[380253040,1755628478482,-504.55,0.000254,7]
[380253041,1755628478505,-12685.85563623,0.0002542,10]
[380253042,1755628478528,-232.21311493,0.0002542,10]
[380253043,1755628478549,-375.88899365,0.0002542,10]
[380253044,1755628478571,-216.8835046,0.0002542,10]
[380253045,1755628478596,-1000.0,0.00025421,2]
[380253046,1755628478621,-1000.0,0.00025421,2]
[380253047,1755628478642,-766.90847773,0.00025421,2]
[380253048,1755628478665,-160.0,0.0002543,10]
[380253049,1755628478686,-215.79176414,0.0002543,10]
[380253050,1755628478708,-528.6845513,0.0002543,10]
[380253051,1755628478730,-160.0,0.0002543,10]
[380253052,1755628478751,-9144.70187431,0.0002543,2]
[380253053,1755628478772,-5000.0,0.0002544,30]
[380253054,1755628478793,-5000.0,0.0002544,30]
[380253055,1755628478815,-5000.0,0.0002544,30]
[380253056,1755628478839,-5000.0,0.0002544,30]
[380253057,1755628478863,-5000.0,0.0002544,30]
[380253058,1755628478885,-5000.0,0.0002544,30]
[380253059,1755628478908,-12685.85563623,0.0002544,30]
[380253060,1755628478929,-160.0,0.0002544,30]
[380253061,1755628478954,-528.6845513,0.0002544,30]
[380253062,1755628478977,-160.0,0.0002544,30]
[380253063,1755628479000,-232.21311493,0.0002544,30]
[380253064,1755628479025,-375.88899365,0.0002544,30]
[380253065,1755628479047,-216.8835046,0.0002544,30]
[380253066,1755628479071,-622.0,0.0002545,2]
[380253067,1755628479095,-154.249576,0.0002545,3]
[380253068,1755628479117,-500.0,0.00025473,2]
[380253069,1755628479139,-935.47599623,0.00025479,2]
[380253070,1755628479163,-236.1823207,0.00025479,2]
[380253071,1755628479188,-846.45183803,0.00025479,2]
[380253072,1755628479213,-1096.0,0.0002548,2]
[380253073,1755628479351,-798.1,0.00025482,7]
[380253074,1755628479374,-168.0,0.00025494,2]
[380253075,1755628479397,-1000.0,0.000255,2]
[380253076,1755628479418,-843.93972674,0.000255,30]
[380253077,1755628479439,-417.15472785,0.000255,30]
[380253078,1755628479461,-2716.18,0.000255,7]
[380253079,1755628479484,-7517.98,0.000255,7]
[380253080,1755628479506,-5000.0,0.00025568,30]
[380253081,1755628479527,-232.21311493,0.0002557,30]
[380253082,1755628479551,-375.88899365,0.0002557,30]
[380253083,1755628479573,-216.8835046,0.0002557,30]
[380253084,1755628479595,-798.1,0.00025582,7]
[380253085,1755628479620,-9144.70187431,0.0002559,2]
[380253086,1755628479642,-1000.0,0.00025596,2]
[380253087,1755628479663,-843.93972674,0.000256,30]
[380253088,1755628479684,-417.15472785,0.000256,30]
[380253089,1755628479705,-12685.85563623,0.000256,30]
[380253090,1755628479727,-151.0,0.00025609,2]
[380253091,1755628479749,-500.0,0.00025609,2]
[380253092,1755628479771,-500.0,0.00025609,2]
[380253093,1755628479794,-151.0,0.00025609,2]
[380253094,1755628479816,-151.0,0.00025609,2]
[380253095,1755628479837,-206.0,0.0002563,2]
[380253096,1755628479860,-154.249576,0.00025644,15]
[380253097,1755628479883,-760.0,0.00025671,2]
[380253098,1755628479905,-4083.44945437,0.00025677,3]
[380253099,1755628479927,-798.1,0.00025682,7]
[380253100,1755628479954,-622.0,0.00025708,7]
[380253101,1755628479975,-167.0,0.00025753,60]
[380253102,1755628479999,-1096.0,0.00025754,2]
[380253103,1755628480023,-154.249576,0.00025755,2]
[380253104,1755628480047,-798.1,0.00025782,7]
[380253105,1755628480069,-740.12113205,0.000258,2]
[380253106,1755628480091,-6975.60548752,0.000258,2]
[380253107,1755628480114,-153.0,0.00025806,2]
[380253108,1755628480137,-153.0,0.00025806,2]
[380253109,1755628480160,-153.0,0.00025806,2]
[380253110,1755628480182,-153.0,0.00025806,2]
[380253111,1755628480207,-153.7921069,0.00025812,2]
[380253112,1755628480229,-431.9034523,0.00025824,2]
[380253113,1755628480254,-406.8685662,0.00025838,2]
[380253114,1755628480277,-622.0,0.00025839,2]
[380253115,1755628480302,-622.0,0.00025854,2]
[380253116,1755628480324,-622.0,0.00025858,2]
[380253117,1755628480346,-282.13211643,0.00025873,2]
[380253118,1755628480368,-500.0,0.00025873,2]
[380253119,1755628480389,-500.0,0.00025873,2]
[380253120,1755628480411,-181.301359,0.00025873,2]
[380253121,1755628480434,-500.0,0.00025873,2]
[380253122,1755628480457,-500.0,0.00025873,2]
[380253123,1755628480478,-500.0,0.00025873,2]
[380253124,1755628480503,-1000.0,0.00025878,20]
[380253125,1755628480525,-798.1,0.00025882,7]
[380253126,1755628480547,-160.0,0.00025882,7]
[380253127,1755628480569,-160.0,0.00025882,7]
[380253128,1755628480591,-215.79176414,0.00025882,7]
[380253129,1755628480612,-528.6845513,0.00025882,7]
[380253130,1755628480634,-160.0,0.00025882,7]
[380253131,1755628480655,-151.0,0.00025883,2]
[380253132,1755628480677,-500.0,0.00025883,2]
[380253133,1755628480699,-500.0,0.00025883,2]
[380253134,1755628480722,-297.0,0.00025883,2]
[380253135,1755628480744,-151.0,0.00025883,2]
[380253136,1755628480767,-1114.26787962,0.0002589,30]
[380253137,1755628480788,-45723.5093715,0.0002589,2]
[380253138,1755628480809,-160.7855539,0.0002589,2]
[380253139,1755628480831,-432.1534747,0.0002589,2]
[380253140,1755628480853,-432.1534747,0.0002589,2]
[380253141,1755628480876,-432.1534747,0.0002589,2]
[380253142,1755628480899,-432.1534747,0.0002589,2]
[380253143,1755628480922,-432.1534747,0.0002589,2]
[380253144,1755628480946,-1369.29841226,0.000259,2]
[380253145,1755628480969,-113364.81849601,0.000259,14]
[380253146,1755628480992,-495808.96663315,0.000259,14]
[380253147,1755628611221,248.168331,0.00013699,2]
[380256238,1755629236120,-189.52552289,0.00019077,2]
[380256239,1755629236142,-172.1845301,0.00019077,2]
[380256240,1755629236163,-300.0,0.00019176,2]
[380256241,1755629236184,-300.0,0.00019177,2]
[380256242,1755629236210,-100.28739335,0.00019177,2]
[380259526,1755629411930,5000.0,0.000186,2]
[380259778,1755629432700,-317.89341763,0.000189,2]
[380259779,1755629432710,-764.38152634,0.00019,2]
[380259780,1755629432808,-28255.00000002,0.00019,2]
[380259787,1755629437973,-741.71847364,0.00019,2]
[380259788,1755629437982,-882.81769516,0.00019076,2]
[380259789,1755629437991,-160.0,0.00019077,2]
[380259790,1755629438001,-199.0,0.00019176,2]
[380259791,1755629438010,-300.0,0.00019176,2]
[380259792,1755629438019,-300.0,0.00019176,2]
[380259793,1755629438028,-300.0,0.00019176,2]
[380259794,1755629438037,-300.0,0.00019176,2]
[380259795,1755629438047,-1200.0,0.00019177,2]
[380259796,1755629438056,-480.0,0.00019178,2]
[380259797,1755629438066,-480.0,0.00019178,2]
[380259798,1755629438204,-480.0,0.00019178,2]
[380259799,1755629438214,-480.0,0.00019178,2]
[380259800,1755629438223,-480.0,0.00019178,2]
[380259801,1755629438233,-1235.23,0.00019178,2]
[380259802,1755629438243,-480.0,0.00019178,2]
[380259803,1755629438255,-480.0,0.00019178,2]
[380259804,1755629438265,-749.27,0.00019178,2]
[380259805,1755629438274,-480.0,0.00019178,2]
[380259806,1755629438284,-480.0,0.00019178,2]
[380259807,1755629438294,-480.0,0.00019178,2]
[380259808,1755629438304,-480.0,0.00019178,2]
[380259809,1755629438313,-480.0,0.00019178,2]
[380259810,1755629438322,-208.12300978,0.00019178,2]
[380259811,1755629438332,-365.57242675,0.00019178,2]
[380259812,1755629438341,-480.0,0.00019178,2]
[380259813,1755629438351,-480.0,0.00019178,2]
[380259814,1755629438361,-415.71892284,0.00019178,2]
[380259815,1755629438371,-480.0,0.00019178,2]
[380259816,1755629438382,-480.0,0.00019178,2]
[380259817,1755629438391,-480.0,0.00019178,2]
[380259818,1755629438401,-480.0,0.00019178,2]
[380259819,1755629438410,-480.0,0.00019178,2]
[380259820,1755629438419,-4723.45005379,0.00019178,2]
[380259821,1755629438429,-150.0,0.0001945,2]
[380259822,1755629438438,-480.0,0.00019452,2]
[380259823,1755629438447,-480.0,0.00019452,2]
[380259824,1755629438456,-480.0,0.00019452,2]
[380259825,1755629438465,-480.0,0.00019452,2]
[380259826,1755629438474,-1235.23,0.00019452,2]
[380259827,1755629438483,-749.27,0.00019452,2]
[380259828,1755629438493,-480.0,0.00019452,2]
[380259829,1755629438503,-480.0,0.00019452,2]
[380259830,1755629438512,-548.65669777,0.00019452,2]
[380259831,1755629438521,-605.38206465,0.00019452,2]
[380259832,1755629438530,-480.0,0.00019452,2]
[380259833,1755629438540,-252.56,0.00019452,2]
[380259834,1755629438549,-480.0,0.00019726,2]
[380259835,1755629438559,-480.0,0.00019726,2]
[380259836,1755629438569,-384.43,0.00019726,2]
[380259837,1755629438578,-480.0,0.00019726,2]
[380259838,1755629438587,-1235.23,0.00019726,2]
[380259839,1755629438597,-749.27,0.00019726,2]
[380259840,1755629438606,-480.0,0.00019726,2]
[380259841,1755629438616,-480.0,0.00019726,2]
[380259842,1755629438626,-480.0,0.00019726,2]
[380259843,1755629438636,-1010.97894522,0.00019781,2]
[380259844,1755629438646,-714.84637669,0.00019809,2]
[380259845,1755629438655,-300.0,0.00019839,20]
[380259846,1755629438665,-300.0,0.00019839,20]
[380259847,1755629438675,-300.0,0.00019839,20]
[380259848,1755629438684,-300.0,0.00019839,20]
[380259849,1755629438693,-300.0,0.00019839,20]
[380259850,1755629438703,-300.0,0.00019839,20]
[380259851,1755629438713,-300.0,0.00019839,20]
[380259852,1755629438722,-300.0,0.00019839,20]
[380259853,1755629438731,-300.0,0.00019839,20]
[380259854,1755629438741,-300.0,0.00019839,20]
[380259855,1755629438750,-300.0,0.00019839,20]
[380259856,1755629438760,-300.0,0.00019839,20]
[380259857,1755629438769,-300.0,0.00019839,20]
[380259858,1755629438779,-300.0,0.00019839,20]
[380259859,1755629438788,-300.0,0.00019839,20]
[380259860,1755629438797,-5454.603615,0.000199,2]
[380259861,1755629438807,-401.848619,0.00019909,2]
[380259862,1755629438817,-480.0,0.0002,2]
[380259863,1755629438826,-582.96451488,0.0002,2]
[380259864,1755629438835,-480.0,0.0002,2]
[380259865,1755629438845,-1235.23,0.0002,2]